[Event "*** MasterClass Titled Tuesday Blitz"]
[Site "Chess.com"]
[Date "2017.12.12"]
[Round "1"]
[White "TheBigBoss04"]
[Black "destroyer305"]
[Result "1-0"]
[WhiteElo "2488"]
[BlackElo "2189"]
[TimeControl "180+2"]
[EndTime "13:06:12 PST"]
[Termination "TheBigBoss04 won by resignation"]

1. Nf3 {[%clk 0:03:01.9]} 1... Nf6 {[%clk 0:02:54.1]} 2. c4 {[%clk 0:03:01.2]}
2... c5 {[%clk 0:02:53.9]} 3. g3 {[%clk 0:03:00.8]} 3... g6 {[%clk 0:02:55.4]}
4. Bg2 {[%clk 0:02:58.3]} 4... Bg7 {[%clk 0:02:56.9]} 5. O-O {[%clk 0:02:58.4]}
5... O-O {[%clk 0:02:58.5]} 6. Nc3 {[%clk 0:02:57.5]} 6... Nc6 {[%clk
0:02:59.1]} 7. d4 {[%clk 0:02:58.1]} 7... cxd4 {[%clk 0:03:01]} 8. Nxd4 {[%clk
0:02:59.4]} 8... Nxd4 {[%clk 0:03:02.9]} 9. Qxd4 {[%clk 0:03:00.4]} 9... d6
{[%clk 0:03:04.8]} 10. Rd1 {[%clk 0:02:59.6]} 10... Be6 {[%clk 0:03:04.9]} 11.
Bxb7 {[%clk 0:02:54]} 11... Nd5 {[%clk 0:02:58.7]} 12. Qd3 {[%clk 0:02:34.7]}
12... Nxc3 {[%clk 0:02:59]} 13. bxc3 {[%clk 0:02:34.8]} 13... Rb8 {[%clk
0:02:57.7]} 14. Bd5 {[%clk 0:02:35.9]} 14... Qa5 {[%clk 0:02:56.2]} 15. Bd2
{[%clk 0:02:33.9]} 15... Rfc8 {[%clk 0:02:55]} 16. Rab1 {[%clk 0:02:26.4]} 16...
Qxa2 {[%clk 0:02:54]} 17. Ra1 {[%clk 0:02:26.8]} 17... Bxd5 {[%clk 0:01:41.9]}
18. Rxa2 {[%clk 0:02:27.3]} 18... Bxc4 {[%clk 0:01:42.6]} 19. Qc2 {[%clk
0:02:28.6]} 19... Bb3 {[%clk 0:01:40.4]} 20. Qc1 {[%clk 0:01:58.4]} 20... Bxd1
{[%clk 0:01:40.5]} 21. Qxd1 {[%clk 0:01:58.7]} 21... Bxc3 {[%clk 0:01:36.5]} 22.
Bxc3 {[%clk 0:01:57.9]} 22... Rxc3 {[%clk 0:01:38.4]} 23. Rxa7 {[%clk
0:01:58.3]} 23... Rbc8 {[%clk 0:01:37.8]} 24. Kg2 {[%clk 0:01:58.3]} 24... R8c7
{[%clk 0:01:37.2]} 25. Ra8+ {[%clk 0:01:57.3]} 25... Kg7 {[%clk 0:01:36.9]} 26.
Qd4+ {[%clk 0:01:58.1]} 26... f6 {[%clk 0:01:38.5]} 27. Qd5 {[%clk 0:01:58.7]}
27... R3c5 {[%clk 0:01:37.1]} 28. Qg8+ {[%clk 0:01:58.5]} 28... Kh6 {[%clk
0:01:38.3]} 29. Qf8+ {[%clk 0:01:57.3]} 29... Kg5 {[%clk 0:01:38.5]} 30. h4+
{[%clk 0:01:58.8]} 30... Kf5 {[%clk 0:01:38.7]} 31. Qg8 {[%clk 0:01:56.9]} 31...
h5 {[%clk 0:01:38.2]} 32. e4+ {[%clk 0:01:56.9]} 32... Kxe4 {[%clk 0:01:34.3]}
33. Ra4+ {[%clk 0:01:57.1]} 33... Ke5 {[%clk 0:01:32.3]} 34. Qxg6 {[%clk
0:01:49.7]} 34... Ke6 {[%clk 0:01:33.1]} 35. Re4+ {[%clk 0:01:46]} 35... Kd7
{[%clk 0:01:30.1]} 36. Qf7 {[%clk 0:01:46.6]} 36... Re5 {[%clk 0:01:23.5]} 37.
Rxe5 {[%clk 0:01:45.8]} 37... fxe5 {[%clk 0:01:25.4]} 38. Qxh5 {[%clk
0:01:47.3]} 38... Ke6 {[%clk 0:01:26.8]} 39. Qg6+ {[%clk 0:01:47.9]} 39... Kd7
{[%clk 0:01:26.1]} 40. h5 {[%clk 0:01:49.8]} 40... d5 {[%clk 0:01:27.6]} 41. h6
{[%clk 0:01:50.5]} 1-0

[Event "*** MasterClass Titled Tuesday Blitz"]
[Site "Chess.com"]
[Date "2017.12.12"]
[Round "1"]
[White "kleinebeer98"]
[Black "Marcin"]
[Result "1-0"]
[WhiteElo "2508"]
[BlackElo "2200"]
[TimeControl "180+2"]
[EndTime "13:06:27 PST"]
[Termination "kleinebeer98 won by resignation"]

1. e4 {[%clk 0:03:01.9]} 1... c5 {[%clk 0:03:00.5]} 2. Nf3 {[%clk 0:03:02.5]}
2... g6 {[%clk 0:03:00.6]} 3. d4 {[%clk 0:03:03.2]} 3... cxd4 {[%clk 0:03:00.7]}
4. Qxd4 {[%clk 0:03:05.1]} 4... Nf6 {[%clk 0:03:01.1]} 5. Nc3 {[%clk 0:03:05.9]}
5... Nc6 {[%clk 0:03:00.9]} 6. Qa4 {[%clk 0:03:07.5]} 6... d6 {[%clk 0:03:00.6]}
7. e5 {[%clk 0:03:08.9]} 7... dxe5 {[%clk 0:02:59.3]} 8. Nxe5 {[%clk 0:03:10.8]}
8... Qd4 {[%clk 0:02:59.6]} 9. Nxc6 {[%clk 0:03:11.1]} 9... Qxa4 {[%clk
0:03:00.1]} 10. Nxa4 {[%clk 0:03:13]} 10... bxc6 {[%clk 0:03:01.5]} 11. g3
{[%clk 0:03:11.7]} 11... Bg7 {[%clk 0:02:59.2]} 12. Bg2 {[%clk 0:03:12.5]} 12...
Nd5 {[%clk 0:02:59.5]} 13. O-O {[%clk 0:03:07.4]} 13... O-O {[%clk 0:02:58.6]}
14. a3 {[%clk 0:02:26.8]} 14... Ba6 {[%clk 0:02:53.9]} 15. Re1 {[%clk
0:02:17.5]} 15... Rab8 {[%clk 0:02:36.7]} 16. Nc5 {[%clk 0:02:11.8]} 16... Bc8
{[%clk 0:02:26]} 17. c3 {[%clk 0:01:41.4]} 17... e6 {[%clk 0:02:15.5]} 18. Re2
{[%clk 0:01:28.9]} 18... Rd8 {[%clk 0:02:06.7]} 19. Rc2 {[%clk 0:01:14]} 19...
e5 {[%clk 0:02:02.3]} 20. c4 {[%clk 0:01:12]} 20... Ne7 {[%clk 0:01:55.4]} 21.
Bg5 {[%clk 0:01:11.4]} 21... f6 {[%clk 0:01:54.9]} 22. Be3 {[%clk 0:01:08.6]}
22... Bf5 {[%clk 0:01:55.6]} 23. Re2 {[%clk 0:01:04.8]} 23... Bg4 {[%clk
0:01:46.9]} 24. Rc2 {[%clk 0:01:02.2]} 24... Bf5 {[%clk 0:01:43.5]} 25. Re2
{[%clk 0:01:02.9]} 25... Bg4 {[%clk 0:01:44.3]} 26. f3 {[%clk 0:01:03.8]} 26...
Bf5 {[%clk 0:01:44]} 27. b4 {[%clk 0:01:03.6]} 27... Nc8 {[%clk 0:01:36.6]} 28.
g4 {[%clk 0:01:00.5]} 28... Bd3 {[%clk 0:01:35.6]} 29. Rd2 {[%clk 0:01:01.1]}
29... e4 {[%clk 0:01:31.3]} 30. fxe4 {[%clk 0:01:00.9]} 30... f5 {[%clk
0:01:32.4]} 31. Rad1 {[%clk 0:01:00.5]} 31... f4 {[%clk 0:01:23.9]} 32. Bxf4
{[%clk 0:01:00.7]} 32... Bd4+ {[%clk 0:01:23.1]} 33. Kh1 {[%clk 0:01:00.7]}
33... Bxc5 {[%clk 0:01:23]} 34. Bxb8 {[%clk 0:00:59.2]} 1-0

[Event "*** MasterClass Titled Tuesday Blitz"]
[Site "Chess.com"]
[Date "2017.12.12"]
[Round "1"]
[White "Vrolijk"]
[Black "Enzy63"]
[Result "1-0"]
[WhiteElo "2464"]
[BlackElo "2098"]
[TimeControl "180+2"]
[EndTime "13:06:30 PST"]
[Termination "Vrolijk won by resignation"]

1. d4 {[%clk 0:03:00.1]} 1... d5 {[%clk 0:03:00.1]} 2. c4 {[%clk 0:02:59.7]}
2... e6 {[%clk 0:03:01.1]} 3. Nf3 {[%clk 0:02:58.8]} 3... Nf6 {[%clk 0:03:01.7]}
4. Nc3 {[%clk 0:02:59.2]} 4... c6 {[%clk 0:03:01.3]} 5. Bg5 {[%clk 0:02:59.2]}
5... Be7 {[%clk 0:03:00.7]} 6. e3 {[%clk 0:02:59.3]} 6... Nbd7 {[%clk
0:03:00.6]} 7. Qc2 {[%clk 0:02:57]} 7... h6 {[%clk 0:03:00.8]} 8. Bh4 {[%clk
0:02:57.4]} 8... O-O {[%clk 0:03:01.6]} 9. Be2 {[%clk 0:02:58.6]} 9... b6 {[%clk
0:03:02.5]} 10. O-O {[%clk 0:02:55.7]} 10... Bb7 {[%clk 0:03:03.9]} 11. Rad1
{[%clk 0:02:51.4]} 11... Rc8 {[%clk 0:03:03.5]} 12. e4 {[%clk 0:02:47.6]} 12...
Nxe4 {[%clk 0:02:53.8]} 13. Bxe7 {[%clk 0:02:46.9]} 13... Qxe7 {[%clk
0:02:55.7]} 14. Nxe4 {[%clk 0:02:48.4]} 14... dxe4 {[%clk 0:02:57.6]} 15. Qxe4
{[%clk 0:02:49.8]} 15... Nf6 {[%clk 0:02:57.2]} 16. Qe3 {[%clk 0:02:44.4]} 16...
Rfe8 {[%clk 0:02:42.8]} 17. c5 {[%clk 0:02:37.1]} 17... Nd5 {[%clk 0:02:36.4]}
18. Qa3 {[%clk 0:02:33.2]} 18... b5 {[%clk 0:02:23.9]} 19. Bd3 {[%clk
0:02:27.7]} 19... a5 {[%clk 0:02:22.4]} 20. Bb1 {[%clk 0:02:18.4]} 20... a4
{[%clk 0:02:14.2]} 21. Qd3 {[%clk 0:02:18.5]} 21... Nf6 {[%clk 0:02:13.2]} 22.
Ne5 {[%clk 0:02:16.4]} 22... Red8 {[%clk 0:01:55.4]} 23. Rfe1 {[%clk 0:02:16.4]}
23... Rd5 {[%clk 0:01:42.3]} 24. Qe3 {[%clk 0:01:52.5]} 24... Rdd8 {[%clk
0:01:00.3]} 25. Qg3 {[%clk 0:01:39.1]} 25... Nd7 {[%clk 0:00:57.1]} 26. Ng4
{[%clk 0:01:39.2]} 26... Qg5 {[%clk 0:00:48.7]} 27. f4 {[%clk 0:01:38.2]} 27...
Qh5 {[%clk 0:00:48.6]} 28. Be4 {[%clk 0:01:23.1]} 28... Kh8 {[%clk 0:00:49.3]}
29. Bf3 {[%clk 0:01:23.7]} 29... Qg6 {[%clk 0:00:47.3]} 30. Qh4 {[%clk
0:01:24.9]} 30... Nf6 {[%clk 0:00:45.2]} 31. Ne5 {[%clk 0:01:25.1]} 1-0

[Event "*** MasterClass Titled Tuesday Blitz"]
[Site "Chess.com"]
[Date "2017.12.12"]
[Round "1"]
[White "NewBornNow"]
[Black "JSMastropiero"]
[Result "1-0"]
[WhiteElo "2596"]
[BlackElo "2306"]
[TimeControl "180+2"]
[EndTime "13:06:48 PST"]
[Termination "NewBornNow won by resignation"]

1. e4 {[%clk 0:03:01.9]} 1... e5 {[%clk 0:03:00]} 2. Nf3 {[%clk 0:03:02]} 2...
Nc6 {[%clk 0:03:01.6]} 3. Bc4 {[%clk 0:03:02.6]} 3... Nf6 {[%clk 0:03:01.6]} 4.
d3 {[%clk 0:03:03.6]} 4... Be7 {[%clk 0:03:03]} 5. O-O {[%clk 0:03:04.1]} 5...
O-O {[%clk 0:03:04.2]} 6. a4 {[%clk 0:03:05.4]} 6... d6 {[%clk 0:03:04.1]} 7. h3
{[%clk 0:03:03.3]} 7... Kh8 {[%clk 0:03:01.7]} 8. c3 {[%clk 0:03:02.5]} 8... Ng8
{[%clk 0:03:01.2]} 9. d4 {[%clk 0:03:03.3]} 9... Bf6 {[%clk 0:03:00.5]} 10. Be3
{[%clk 0:03:02.7]} 10... h6 {[%clk 0:02:57.7]} 11. Nbd2 {[%clk 0:03:03.4]} 11...
Nge7 {[%clk 0:02:57.7]} 12. a5 {[%clk 0:03:01.4]} 12... a6 {[%clk 0:02:58.6]}
13. Qb3 {[%clk 0:02:59.7]} 13... Kg8 {[%clk 0:02:35.9]} 14. Rfd1 {[%clk
0:02:58.3]} 14... Ng6 {[%clk 0:02:36.1]} 15. Nf1 {[%clk 0:02:54.7]} 15... Qe7
{[%clk 0:02:34.9]} 16. Ng3 {[%clk 0:02:54.5]} 16... Nf4 {[%clk 0:02:30.9]} 17.
Re1 {[%clk 0:02:38.5]} 17... g5 {[%clk 0:02:27.2]} 18. Kh2 {[%clk 0:02:29.4]}
18... Kh7 {[%clk 0:02:27]} 19. Nf5 {[%clk 0:02:26.2]} 19... Bxf5 {[%clk
0:02:25.8]} 20. exf5 {[%clk 0:02:27.1]} 20... Qd7 {[%clk 0:02:21]} 21. Qc2
{[%clk 0:02:20.2]} 21... Rae8 {[%clk 0:02:18.2]} 22. g3 {[%clk 0:02:14.7]} 22...
e4 {[%clk 0:02:10.2]} 23. gxf4 {[%clk 0:02:06.5]} 23... exf3 {[%clk 0:02:10.9]}
24. fxg5 {[%clk 0:02:07.3]} 24... hxg5 {[%clk 0:02:09.6]} 25. Rg1 {[%clk
0:02:04.1]} 25... d5 {[%clk 0:02:09.3]} 26. Bd3 {[%clk 0:02:03.9]} 26... Qd6+
{[%clk 0:02:09.1]} 27. Kh1 {[%clk 0:02:03.8]} 27... Rg8 {[%clk 0:02:10.6]} 28.
Qd2 {[%clk 0:01:59.5]} 28... Qe7 {[%clk 0:01:51.4]} 29. Rg3 {[%clk 0:01:23.2]}
29... Rg7 {[%clk 0:01:51.5]} 30. Rag1 {[%clk 0:01:21.8]} 30... Reg8 {[%clk
0:01:40.9]} 31. Qd1 {[%clk 0:01:22.1]} 31... Rh8 {[%clk 0:01:37.1]} 32. Qxf3
{[%clk 0:01:21.2]} 32... Kg8 {[%clk 0:01:38.3]} 33. Qxd5 {[%clk 0:01:21.7]}
33... g4 {[%clk 0:01:35.7]} 34. b4 {[%clk 0:01:18.9]} 34... Rxh3+ {[%clk
0:01:31.4]} 35. Rxh3 {[%clk 0:01:18.8]} 35... gxh3 {[%clk 0:01:33.3]} 36. Rxg7+
{[%clk 0:01:19.1]} 36... Kxg7 {[%clk 0:01:35.2]} 37. Qf3 {[%clk 0:01:18.8]}
37... Nxb4 {[%clk 0:01:30.1]} 38. cxb4 {[%clk 0:01:17.9]} 38... Qxb4 {[%clk
0:01:31.7]} 39. Qxh3 {[%clk 0:01:16.1]} 39... Qxa5 {[%clk 0:01:30.8]} 40. Qh6+
{[%clk 0:01:15.3]} 40... Kg8 {[%clk 0:01:31.3]} 41. Qxf6 {[%clk 0:01:16.2]}
41... Qd5+ {[%clk 0:01:29.2]} 42. Kg1 {[%clk 0:01:16]} 42... a5 {[%clk
0:01:28.5]} 43. Bh6 {[%clk 0:01:14.8]} 1-0

[Event "*** MasterClass Titled Tuesday Blitz"]
[Site "Chess.com"]
[Date "2017.12.12"]
[Round "1"]
[White "SharkAnto55"]
[Black "Msb2"]
[Result "0-1"]
[WhiteElo "2357"]
[BlackElo "2673"]
[TimeControl "180+2"]
[EndTime "13:06:51 PST"]
[Termination "Msb2 won by resignation"]

1. d4 {[%clk 0:03:01.9]} 1... Nf6 {[%clk 0:03:00.4]} 2. c4 {[%clk 0:03:01.3]}
2... c5 {[%clk 0:03:01.2]} 3. d5 {[%clk 0:03:02.1]} 3... b5 {[%clk 0:03:02.1]}
4. cxb5 {[%clk 0:02:57.6]} 4... a6 {[%clk 0:03:03.4]} 5. bxa6 {[%clk 0:02:55.1]}
5... g6 {[%clk 0:03:04.6]} 6. Nc3 {[%clk 0:02:56.1]} 6... Bg7 {[%clk 0:03:06.2]}
7. Nf3 {[%clk 0:02:55.2]} 7... O-O {[%clk 0:03:07.7]} 8. g3 {[%clk 0:02:56.6]}
8... d6 {[%clk 0:03:08.2]} 9. Bg2 {[%clk 0:02:57.9]} 9... Nfd7 {[%clk
0:03:09.8]} 10. h4 {[%clk 0:02:55.6]} 10... h5 {[%clk 0:03:08.2]} 11. O-O {[%clk
0:02:37.4]} 11... Nb6 {[%clk 0:03:08.3]} 12. e4 {[%clk 0:02:18.1]} 12... Bxa6
{[%clk 0:03:03.9]} 13. Re1 {[%clk 0:02:17.3]} 13... N8d7 {[%clk 0:03:05.8]} 14.
Bf4 {[%clk 0:02:17.2]} 14... Nc4 {[%clk 0:03:05.6]} 15. Qc2 {[%clk 0:02:02]}
15... Qa5 {[%clk 0:03:05.2]} 16. Rac1 {[%clk 0:01:34.9]} 16... Rfb8 {[%clk
0:02:53.4]} 17. b3 {[%clk 0:01:33.8]} 17... Nce5 {[%clk 0:02:44.1]} 18. Nxe5
{[%clk 0:01:34.3]} 18... Nxe5 {[%clk 0:02:46]} 19. Bxe5 {[%clk 0:01:23.9]} 19...
Bxe5 {[%clk 0:02:47.9]} 20. f4 {[%clk 0:01:25.4]} 20... Bd4+ {[%clk 0:02:44.2]}
21. Kh2 {[%clk 0:01:26]} 21... Bc8 {[%clk 0:02:36]} 22. Na4 {[%clk 0:00:41.6]}
22... Bd7 {[%clk 0:02:27.7]} 23. e5 {[%clk 0:00:22.1]} 23... Bxa4 {[%clk
0:02:28.7]} 24. bxa4 {[%clk 0:00:23.3]} 24... Qxa4 {[%clk 0:02:30.6]} 25. Qe4
{[%clk 0:00:25.2]} 25... Rb2 {[%clk 0:01:55.4]} 26. exd6 {[%clk 0:00:23.1]}
26... exd6 {[%clk 0:01:57.3]} 27. f5 {[%clk 0:00:24.4]} 27... Be5 {[%clk
0:01:49.8]} 28. fxg6 {[%clk 0:00:20.5]} 28... Qxe4 {[%clk 0:01:50.7]} 29. gxf7+
{[%clk 0:00:22.4]} 29... Kxf7 {[%clk 0:01:50.3]} 30. Rxe4 {[%clk 0:00:21.7]}
30... Raxa2 {[%clk 0:01:51.1]} 31. Rf1+ {[%clk 0:00:21]} 31... Kg7 {[%clk
0:01:44.3]} 32. Rg1 {[%clk 0:00:22.2]} 32... Bd4 {[%clk 0:01:44.7]} 33. Rxd4
{[%clk 0:00:18.7]} 33... cxd4 {[%clk 0:01:46.6]} 0-1

[Event "*** MasterClass Titled Tuesday Blitz"]
[Site "Chess.com"]
[Date "2017.12.12"]
[Round "1"]
[White "Babbelbox"]
[Black "sandager"]
[Result "1-0"]
[WhiteElo "2433"]
[BlackElo "1972"]
[TimeControl "180+2"]
[EndTime "13:06:51 PST"]
[Termination "Babbelbox won by resignation"]

1. d4 {[%clk 0:02:57]} 1... Nf6 {[%clk 0:02:58.6]} 2. c4 {[%clk 0:02:58.9]} 2...
g6 {[%clk 0:02:58.7]} 3. Nc3 {[%clk 0:02:55.4]} 3... d5 {[%clk 0:02:58.5]} 4.
cxd5 {[%clk 0:02:56.6]} 4... Nxd5 {[%clk 0:02:58.5]} 5. e4 {[%clk 0:02:58.5]}
5... Nxc3 {[%clk 0:02:59.3]} 6. bxc3 {[%clk 0:03:00.4]} 6... Bg7 {[%clk
0:03:00.2]} 7. Nf3 {[%clk 0:02:58.1]} 7... c5 {[%clk 0:03:00.6]} 8. Rb1 {[%clk
0:02:59.1]} 8... Qa5 {[%clk 0:02:56.1]} 9. Rb5 {[%clk 0:02:44.2]} 9... Qxa2
{[%clk 0:02:56.1]} 10. Rxc5 {[%clk 0:02:44.5]} 10... O-O {[%clk 0:02:55.4]} 11.
Bc4 {[%clk 0:02:43.4]} 11... Qa1 {[%clk 0:02:40.4]} 12. O-O {[%clk 0:02:21.9]}
12... b6 {[%clk 0:02:38.2]} 13. Rc7 {[%clk 0:02:20.7]} 13... Na6 {[%clk
0:02:26.7]} 14. Rxe7 {[%clk 0:02:13.5]} 14... Qxc3 {[%clk 0:02:20.8]} 15. Bd5
{[%clk 0:02:08.6]} 15... Bf6 {[%clk 0:01:56.4]} 16. Rxf7 {[%clk 0:01:56.8]}
16... Rxf7 {[%clk 0:01:54.5]} 17. Bxa8 {[%clk 0:01:58.4]} 17... Nc7 {[%clk
0:01:35.4]} 18. e5 {[%clk 0:01:44.3]} 18... Bd8 {[%clk 0:01:20.2]} 19. Be4
{[%clk 0:01:42.4]} 19... Bg4 {[%clk 0:01:08.7]} 20. h3 {[%clk 0:01:20.4]} 20...
Bxf3 {[%clk 0:00:59.7]} 21. Bxf3 {[%clk 0:01:22.3]} 21... Rd7 {[%clk 0:00:50.2]}
22. Be3 {[%clk 0:01:15.2]} 22... Ne6 {[%clk 0:00:41.6]} 23. Qa4 {[%clk 0:01:09]}
23... Rxd4 {[%clk 0:00:08.1]} 24. Qe8+ {[%clk 0:01:07.7]} 24... Kg7 {[%clk
0:00:07.1]} 25. Qxe6 {[%clk 0:01:07]} 1-0

[Event "*** MasterClass Titled Tuesday Blitz"]
[Site "Chess.com"]
[Date "2017.12.12"]
[Round "1"]
[White "GameOverBro"]
[Black "maciek_92"]
[Result "1-0"]
[WhiteElo "2241"]
[BlackElo "2496"]
[TimeControl "180+2"]
[EndTime "13:07:02 PST"]
[Termination "GameOverBro won by resignation"]

1. e4 {[%clk 0:03:01.9]} 1... c5 {[%clk 0:03:00.8]} 2. Ne2 {[%clk 0:03:02.8]}
2... Nc6 {[%clk 0:03:01.7]} 3. Nbc3 {[%clk 0:03:03.3]} 3... e5 {[%clk
0:03:00.4]} 4. Ng3 {[%clk 0:03:03.5]} 4... g6 {[%clk 0:03:01.3]} 5. Bc4 {[%clk
0:03:03.5]} 5... Bg7 {[%clk 0:03:00.3]} 6. d3 {[%clk 0:03:03.7]} 6... h5 {[%clk
0:02:58.6]} 7. O-O {[%clk 0:03:03.5]} 7... Nge7 {[%clk 0:02:57.3]} 8. f4 {[%clk
0:03:03.4]} 8... h4 {[%clk 0:02:56.7]} 9. Nge2 {[%clk 0:03:04]} 9... d6 {[%clk
0:02:56.9]} 10. Nd5 {[%clk 0:02:55.9]} 10... Nxd5 {[%clk 0:02:53]} 11. Bxd5
{[%clk 0:02:56]} 11... Be6 {[%clk 0:02:47.8]} 12. Bxe6 {[%clk 0:02:55.8]} 12...
fxe6 {[%clk 0:02:48.3]} 13. f5 {[%clk 0:02:57]} 13... exf5 {[%clk 0:02:38.1]}
14. exf5 {[%clk 0:02:58.9]} 14... gxf5 {[%clk 0:02:39.2]} 15. Rxf5 {[%clk
0:02:59.6]} 15... Qd7 {[%clk 0:02:37.9]} 16. Qf1 {[%clk 0:02:55.5]} 16... O-O-O
{[%clk 0:02:37]} 17. Rf7 {[%clk 0:02:55.8]} 17... Rdf8 {[%clk 0:02:38.3]} 18.
Rxd7 {[%clk 0:02:52.5]} 18... Rxf1+ {[%clk 0:02:38.7]} 19. Kxf1 {[%clk
0:02:54.4]} 19... Kxd7 {[%clk 0:02:40.1]} 20. c3 {[%clk 0:02:51.7]} 20... h3
{[%clk 0:02:39.2]} 21. g3 {[%clk 0:02:50]} 21... Rf8+ {[%clk 0:02:39.2]} 22. Ke1
{[%clk 0:02:42.1]} 22... d5 {[%clk 0:02:36.9]} 23. Be3 {[%clk 0:02:37.3]} 23...
d4 {[%clk 0:02:36.2]} 24. Bd2 {[%clk 0:02:35.9]} 24... Rf3 {[%clk 0:02:36.3]}
25. Ng1 {[%clk 0:02:36.5]} 25... Rxd3 {[%clk 0:02:35.7]} 26. Nxh3 {[%clk
0:02:36.3]} 26... Rf3 {[%clk 0:02:32.5]} 27. Ke2 {[%clk 0:02:33.1]} 27... Rf8
{[%clk 0:02:26.9]} 28. Ng5 {[%clk 0:02:32]} 28... c4 {[%clk 0:02:25.7]} 29. h4
{[%clk 0:02:25.5]} 29... Kd6 {[%clk 0:02:24.9]} 30. h5 {[%clk 0:02:21.7]} 30...
Kd5 {[%clk 0:02:24.6]} 31. Rh1 {[%clk 0:02:22.2]} 31... Bh6 {[%clk 0:02:22.8]}
32. Nh7 {[%clk 0:02:12.5]} 32... d3+ {[%clk 0:02:18.7]} 33. Kd1 {[%clk
0:02:12.7]} 33... Rf7 {[%clk 0:02:14]} 34. Bxh6 {[%clk 0:02:11.7]} 34... Rxh7
{[%clk 0:02:15.3]} 35. Be3 {[%clk 0:02:11.2]} 35... Ke4 {[%clk 0:02:15.1]} 36.
Kd2 {[%clk 0:02:11.3]} 36... Kf3 {[%clk 0:02:15.7]} 37. h6 {[%clk 0:02:11.5]}
37... Kxg3 {[%clk 0:02:14.1]} 38. Rg1+ {[%clk 0:02:10]} 38... Kf3 {[%clk
0:02:04.3]} 39. Rg7 {[%clk 0:02:06.1]} 39... Rxg7 {[%clk 0:02:04.3]} 40. hxg7
{[%clk 0:02:08]} 40... Ne7 {[%clk 0:02:05.8]} 41. Bxa7 {[%clk 0:02:08.8]} 41...
Kf4 {[%clk 0:02:01.2]} 42. b3 {[%clk 0:02:07.3]} 42... b5 {[%clk 0:01:59.5]} 43.
Bc5 {[%clk 0:02:06.2]} 43... Ng8 {[%clk 0:01:59.1]} 44. a4 {[%clk 0:02:07.7]}
44... cxb3 {[%clk 0:01:58]} 45. Kxd3 {[%clk 0:02:00.2]} 45... bxa4 {[%clk
0:01:58.3]} 46. c4 {[%clk 0:01:57.7]} 46... e4+ {[%clk 0:01:57.1]} 47. Kc3
{[%clk 0:01:58.4]} 47... e3 {[%clk 0:01:58.1]} 48. Bxe3+ {[%clk 0:01:59.3]}
48... Kxe3 {[%clk 0:01:58.9]} 49. c5 {[%clk 0:02:00.9]} 49... Ke2 {[%clk
0:01:41.1]} 50. c6 {[%clk 0:01:43.7]} 50... Kd1 {[%clk 0:01:39.9]} 51. c7 {[%clk
0:01:45.2]} 51... b2 {[%clk 0:01:37.2]} 52. c8=Q {[%clk 0:01:44.9]} 52... b1=Q
{[%clk 0:01:35.8]} 53. Qg4+ {[%clk 0:01:46]} 53... Ke1 {[%clk 0:01:35.6]} 54.
Qg1+ {[%clk 0:01:45.8]} 54... Ke2 {[%clk 0:01:36.6]} 55. Qxb1 {[%clk 0:01:47.2]}
1-0

[Event "*** MasterClass Titled Tuesday Blitz"]
[Site "Chess.com"]
[Date "2017.12.12"]
[Round "1"]
[White "Jbd735"]
[Black "Vahe_Dan"]
[Result "0-1"]
[WhiteElo "2250"]
[BlackElo "2534"]
[TimeControl "180+2"]
[EndTime "13:07:10 PST"]
[Termination "Vahe_Dan won by resignation"]

1. d4 {[%clk 0:03:01.9]} 1... Nf6 {[%clk 0:03:00.1]} 2. Nf3 {[%clk 0:02:59.5]}
2... g6 {[%clk 0:03:00.8]} 3. c3 {[%clk 0:02:49.2]} 3... Bg7 {[%clk 0:03:00.4]}
4. e3 {[%clk 0:02:43.1]} 4... O-O {[%clk 0:03:01]} 5. Nbd2 {[%clk 0:02:43.2]}
5... d5 {[%clk 0:03:01.8]} 6. Bd3 {[%clk 0:02:43.4]} 6... Nbd7 {[%clk
0:03:02.2]} 7. O-O {[%clk 0:02:43.1]} 7... c5 {[%clk 0:03:03.3]} 8. Qe2 {[%clk
0:02:42.1]} 8... Re8 {[%clk 0:03:02.2]} 9. e4 {[%clk 0:02:41.3]} 9... cxd4
{[%clk 0:02:59.5]} 10. cxd4 {[%clk 0:02:40.4]} 10... e5 {[%clk 0:02:58]} 11.
dxe5 {[%clk 0:02:34.1]} 11... Nxe5 {[%clk 0:02:59.9]} 12. Nxe5 {[%clk
0:02:35.2]} 12... Rxe5 {[%clk 0:02:58.8]} 13. f4 {[%clk 0:02:28.8]} 13... Re8
{[%clk 0:02:59.3]} 14. e5 {[%clk 0:02:29]} 14... Nd7 {[%clk 0:03:00.4]} 15. Nf3
{[%clk 0:02:25.3]} 15... Nc5 {[%clk 0:02:58.2]} 16. Bb5 {[%clk 0:02:20.2]} 16...
Bd7 {[%clk 0:02:59.2]} 17. Be3 {[%clk 0:02:15.8]} 17... Ne6 {[%clk 0:02:54.9]}
18. Rad1 {[%clk 0:02:04.3]} 18... a6 {[%clk 0:02:52.4]} 19. Bxd7 {[%clk
0:01:56]} 19... Qxd7 {[%clk 0:02:54.3]} 20. Qd2 {[%clk 0:01:54]} 20... Red8
{[%clk 0:02:52.3]} 21. Bb6 {[%clk 0:01:53]} 21... Rdc8 {[%clk 0:02:50.9]} 22.
Qxd5 {[%clk 0:01:53.7]} 22... Qxd5 {[%clk 0:02:49.2]} 23. Rxd5 {[%clk
0:01:55.6]} 23... Nxf4 {[%clk 0:02:51.1]} 24. Rd7 {[%clk 0:01:53.7]} 24... Rc2
{[%clk 0:02:49.3]} 25. Ng5 {[%clk 0:01:42.9]} 25... Rxg2+ {[%clk 0:02:47.7]} 26.
Kh1 {[%clk 0:01:43.7]} 26... Rxg5 {[%clk 0:02:49.6]} 27. Rxf4 {[%clk 0:01:41.9]}
27... Rf8 {[%clk 0:02:42.2]} 28. Rxb7 {[%clk 0:01:24]} 28... Bxe5 {[%clk
0:02:38.6]} 29. Rf2 {[%clk 0:01:24.6]} 29... Rc8 {[%clk 0:02:28.7]} 30. Be3
{[%clk 0:01:18.5]} 30... Rh5 {[%clk 0:02:27.2]} 31. Rfxf7 {[%clk 0:01:01.3]}
31... Rxh2+ {[%clk 0:02:23.8]} 32. Kg1 {[%clk 0:01:02.4]} 32... Rxb2 {[%clk
0:02:19.6]} 33. Rxh7 {[%clk 0:00:56.3]} 33... Rcc2 {[%clk 0:02:00.3]} 34. Rxb2
{[%clk 0:00:42.4]} 34... Rxb2 {[%clk 0:02:01.1]} 35. Re7 {[%clk 0:00:40.7]}
35... Bh2+ {[%clk 0:02:00.4]} 36. Kh1 {[%clk 0:00:33]} 36... Rxa2 {[%clk
0:01:59.3]} 37. Bd4 {[%clk 0:00:31.5]} 37... Kf8 {[%clk 0:01:56.6]} 38. Rg7
{[%clk 0:00:27.7]} 38... Bd6 {[%clk 0:01:53.7]} 39. Rxg6 {[%clk 0:00:27.4]}
39... Ke7 {[%clk 0:01:54.8]} 40. Rg7+ {[%clk 0:00:26.2]} 40... Ke6 {[%clk
0:01:53.5]} 41. Ra7 {[%clk 0:00:27.8]} 41... a5 {[%clk 0:01:51.9]} 42. Kg1
{[%clk 0:00:21.1]} 42... Kd5 {[%clk 0:01:50.9]} 43. Bf6 {[%clk 0:00:20]} 43...
Bc5+ {[%clk 0:01:50]} 0-1